bitfinex/quotes_BTCUSD_20220304
["timestamp","ask_amount","ask_price","bid_price","bid_amount"]
[1646404428939,0.001,41255.0,41247.0,0.2528794]
[1646404429141,0.17861448,41255.0,41245.0,0.05]
[1646404429340,0.001,41255.0,41245.0,0.05]
[1646404429541,0.24548639,41249.0,41246.0,0.01252986]
[1646404429742,0.39548639,41249.0,41246.0,0.01252986]
[1646404430540,0.060673,41248.0,41246.0,0.01252986]
[1646404431190,0.05,41249.0,41247.0,0.27390938]
[1646404431389,0.05,41249.0,41246.0,0.01252986]
[1646404431390,0.003,41252.0,41246.0,0.22794061]
[1646404431588,0.003,41252.0,41249.0,0.25702789]
[1646404431793,0.001,41255.0,41252.0,0.006]
[1646404431991,0.001,41255.0,41253.0,0.01140979]
[1646404432892,0.06165,41255.0,41253.0,0.01140979]
[1646404433092,0.12230158,41255.0,41253.0,0.01140979]
[1646404433295,0.17230158,41255.0,41253.0,0.01140979]
[1646404433891,0.35758765,41255.0,41253.0,0.01140979]
[1646404434093,0.16730158,41255.0,41253.0,0.01140979]
[1646404434744,0.051,41255.0,41253.0,0.01140979]
[1646404434945,0.001,41255.0,41253.0,0.19959172]
[1646404435347,0.003,41259.0,41254.0,0.15]
[1646404435547,0.003,41259.0,41254.0,0.39208618]
[1646404435744,0.003,41259.0,41255.0,0.33716625]
[1646404435949,0.003,41259.0,41256.0,0.02423]
[1646404436146,0.0011,41266.0,41259.0,0.02423]
[1646404436347,0.0011,41266.0,41260.0,0.01391134]
[1646404436648,0.0011,41266.0,41264.0,0.23131847]
[1646404437047,0.0011,41266.0,41260.0,0.060616]
[1646404437249,0.060635,41265.0,41256.0,0.15]
[1646404437845,0.060635,41265.0,41256.0,0.210638]
[1646404438048,0.0011,41266.0,41262.0,0.28827014]
[1646404438250,0.0011,41266.0,41263.0,0.05]
[1646404438498,0.0011,41266.0,41264.0,0.19339911]
[1646404438891,0.0011,41266.0,41264.0,0.28710817]
[1646404439093,0.0011,41272.0,41265.0,0.42386893]
[1646404439297,0.05,41277.0,41270.0,0.17423]
[1646404439496,0.05,41277.0,41275.0,0.02423]
[1646404439694,0.0011,41281.0,41275.0,0.02423]
[1646404439893,0.0011,41281.0,41275.0,0.5695032]
[1646404440093,0.0011,41281.0,41276.0,0.0445]
[1646404440298,0.0011,41281.0,41269.0,0.30467786]
[1646404440695,0.0011,41281.0,41270.0,0.1]
[1646404440899,0.12232807,41281.0,41270.0,0.1]
[1646404441106,0.12232807,41281.0,41270.0,0.42423]
[1646404441299,0.12232807,41281.0,41274.0,0.02423]
[1646404441300,0.0011,41281.0,41274.0,0.02423]
[1646404441598,0.0011,41281.0,41274.0,0.32423]
[1646404441795,0.0011,41281.0,41276.0,0.02423]
[1646404441997,0.0011,41281.0,41276.0,0.23505358]
[1646404442252,0.0011,41281.0,41277.0,0.32423]
[1646404442655,0.0011,41281.0,41277.0,0.42423]
[1646404443059,0.42426168,41301.0,41280.0,1.42423]
[1646404443260,0.0022,41308.0,41295.0,0.02423]
[1646404443461,0.0022,41308.0,41305.0,0.15550354]
[1646404443661,0.0022,41308.0,41306.0,0.3]
[1646404443859,0.0022,41308.0,41298.0,0.02423]
[1646404443860,0.0022,41308.0,41300.0,0.02423]
[1646404444057,0.0022,41308.0,41305.0,0.28991928]
[1646404444259,0.0022,41308.0,41303.0,0.12112]
[1646404444659,0.0022,41308.0,41294.0,0.1]
[1646404444660,0.0022,41308.0,41297.0,0.39735268]
[1646404444961,0.0022,41308.0,41299.0,0.002]
[1646404444962,0.060579,41307.0,41299.0,0.002]
[1646404445163,0.24109803,41303.0,41299.0,0.002]
[1646404445360,0.0022,41308.0,41299.0,0.002]
[1646404445361,0.24450942,41306.0,41299.0,0.002]
[1646404445560,0.0022,41308.0,41299.0,0.002]
[1646404445561,0.05,41303.0,41299.0,0.002]
[1646404445760,0.05,41306.0,41299.0,0.062577]
[1646404446191,0.05,41306.0,41299.0,0.060577]
[1646404446387,0.30556332,41304.0,41294.0,0.1]
[1646404446786,0.4161438,41304.0,41294.0,0.521158]
[1646404447086,0.4161438,41304.0,41295.0,0.01293452]
[1646404447290,0.060587,41302.0,41295.0,0.01497971]
[1646404447487,0.07377553,41301.0,41289.0,0.281724]
[1646404447689,0.07377553,41301.0,41295.0,0.01044609]
[1646404447690,0.12118266,41301.0,41295.0,0.01044609]
[1646404447888,0.24450942,41300.0,41288.0,0.060595]
[1646404448089,0.05,41300.0,41290.0,0.28407235]
[1646404448290,0.05,41300.0,41290.0,0.01256901]
[1646404448488,0.05,41300.0,41277.0,0.49]
[1646404448489,0.3407,41299.0,41277.0,0.49]
[1646404448795,0.210614,41294.0,41278.0,0.01127578]
[1646404448987,0.05,41291.0,41278.0,0.01127578]
[1646404449188,0.21470744,41286.0,41278.0,0.25514907]
[1646404449392,0.24450942,41283.0,41278.0,0.01127578]
[1646404449644,0.28520942,41282.0,41278.0,0.01127578]
[1646404449842,0.28520942,41282.0,41280.0,0.01524395]
[1646404449843,0.05,41281.0,41280.0,0.01524395]
[1646404450045,0.06062076,41277.0,41266.0,0.08834785]
[1646404450243,0.10132076,41277.0,41272.0,0.121244]
[1646404450446,0.21194376,41277.0,41273.0,0.014775]
[1646404450843,0.14132076,41277.0,41273.0,0.014775]
[1646404451050,0.05,41277.0,41273.0,0.014775]
[1646404451245,0.05,41286.0,41274.0,0.060621]
[1646404451554,0.060602,41292.0,41280.0,0.25030494]
[1646404451743,0.060602,41292.0,41274.0,0.060621]
[1646404451744,0.29693152,41288.0,41274.0,0.060621]
[1646404452143,0.0606038,41284.0,41274.0,0.060621]
[1646404452344,0.0606038,41284.0,41275.0,0.05]
[1646404452545,0.0606038,41284.0,41277.0,0.121205]
[1646404452743,0.0606038,41284.0,41278.0,0.06511978]
[1646404452943,0.0606038,41284.0,41279.0,0.26415776]
[1646404453146,0.0605985,41288.0,41280.0,0.29796694]
[1646404453394,0.24450942,41299.0,41281.0,0.02423]
[1646404453592,0.02667487,41303.0,41281.0,0.02423]
[1646404453593,0.00167487,41303.0,41283.0,0.02423]
[1646404453789,0.00167487,41303.0,41284.0,0.03691336]
[1646404453988,0.00167487,41303.0,41297.0,0.2810543]
[1646404454192,0.00167487,41303.0,41298.0,0.01438529]
[1646404454193,0.23700852,41301.0,41298.0,0.01438529]
[1646404454390,0.24450942,41300.0,41284.0,0.3]
[1646404454592,0.24450942,41300.0,41285.0,0.0108023]
[1646404454790,2.59799978,41305.0,41285.0,0.0108023]
[1646404454791,0.24450942,41294.0,41285.0,0.0108023]
[1646404455189,0.41403559,41293.0,41285.0,0.0713993]
[1646404455388,0.24450942,41296.0,41286.0,0.25982005]
[1646404455589,0.24450942,41296.0,41286.0,0.55982005]
[1646404455590,0.05,41293.0,41286.0,0.55982005]
[1646404455789,0.06060433,41291.0,41286.0,0.38099905]
[1646404455991,0.24450942,41304.0,41287.0,0.2162028]
[1646404456192,0.24450942,41304.0,41287.0,0.3662028]
[1646404456388,0.24450942,41304.0,41293.0,0.3018817]
[1646404456389,0.54422211,41304.0,41293.0,0.3018817]
[1646404456591,0.54422211,41304.0,41294.0,0.01346975]
[1646404456797,0.12334075,41308.0,41295.0,0.0752569]
[1646404457143,0.0022,41308.0,41296.0,0.04935887]
[1646404457340,0.0022,41308.0,41295.0,0.0146759]
[1646404457743,0.18174629,41304.0,41295.0,0.0752579]
[1646404457940,0.18174629,41304.0,41295.0,0.0146759]
[1646404458140,0.18174629,41304.0,41297.0,0.01533189]
[1646404458339,0.18174629,41304.0,41298.0,0.01409656]
[1646404458340,0.121177,41303.0,41298.0,0.01409656]
[1646404458543,0.461877,41303.0,41290.0,0.01068497]
[1646404458741,0.00090451,41293.0,41290.0,0.01068497]
[1646404460542,0.06059532,41292.0,41290.0,0.01068497]
[1646404461195,0.00090451,41293.0,41290.0,0.01068497]
[1646404461595,0.00090451,41293.0,41291.0,1.24575624]
[1646404461796,0.00258266,41296.0,41295.0,0.00355527]
[1646404463593,0.00229117,41296.0,41295.0,0.00355527]
[1646404464196,0.11057752,41299.0,41295.0,0.00355527]
[1646404465440,0.11057752,41299.0,41295.0,0.27037682]
[1646404465639,0.11057752,41299.0,41295.0,0.32037682]
[1646404465640,0.05,41299.0,41295.0,0.32037682]
[1646404465836,0.12114353,41305.0,41295.0,0.32037682]
[1646404466037,0.05,41305.0,41295.0,0.32037682]
[1646404466238,0.05,41304.0,41295.0,0.32037682]
[1646404466444,0.00155483,41308.0,41306.0,0.19167884]
[1646404466638,0.00155483,41308.0,41298.0,0.02423]
[1646404466837,0.00155483,41308.0,41302.0,0.02423]
[1646404467040,0.4686,41317.0,41302.0,0.02423]
[1646404467041,0.051,41318.0,41304.0,0.02423]
[1646404467242,0.051,41318.0,41304.0,0.12423]
[1646404467243,0.001,41318.0,41304.0,0.12423]
[1646404467439,0.001,41318.0,41306.0,0.02423]
[1646404467641,0.001,41318.0,41312.0,0.02423]
[1646404467838,0.001,41318.0,41314.0,0.31210037]
[1646404468037,0.001,41318.0,41315.0,0.72613]
[1646404468239,0.001,41318.0,41315.0,0.87613]
[1646404469896,0.001,41318.0,41315.0,0.936675]
[1646404470091,0.001,41318.0,41317.0,0.18571461]
[1646404470492,0.001,41318.0,41316.0,0.3]
[1646404470692,0.001,41318.0,41315.0,0.886675]
[1646404470893,0.001,41318.0,41316.0,0.3]
[1646404471294,0.001,41318.0,41317.0,0.26625213]
[1646404471496,0.001,41318.0,41317.0,0.96178739]
[1646404471796,0.06153712,41327.0,41319.0,0.084757]
[1646404471797,0.001,41327.0,41319.0,0.084757]
[1646404471994,0.001,41327.0,41321.0,0.01487069]
[1646404472237,0.001,41327.0,41321.0,0.32986097]
[1646404472443,0.001,41327.0,41325.0,0.29550238]
[1646404472640,0.001,41327.0,41326.0,0.49346843]
[1646404472838,0.0011,41331.0,41327.0,1.15]
[1646404473038,0.0011,41331.0,41328.0,0.02423]
[1646404473237,0.0011,41331.0,41328.0,0.12423]
[1646404473438,0.0011,41331.0,41329.0,0.3]
[1646404473639,0.0011,41331.0,41329.0,0.55845771]
[1646404473938,0.0001,41331.0,41330.0,0.1]
[1646404474138,0.0001,41331.0,41330.0,0.4]
[1646404475042,0.0001,41331.0,41330.0,0.42423]
[1646404475892,0.0001,41331.0,41326.0,1.48639341]
[1646404475893,0.0001,41331.0,41326.0,0.72594]
[1646404476097,0.0001,41331.0,41327.0,0.1]
[1646404476291,0.0001,41331.0,41328.0,0.7259]
[1646404477498,0.060639,41331.0,41328.0,0.7259]
[1646404477700,0.101241,41330.0,41328.0,0.7259]
[1646404477895,0.41792313,41329.0,41328.0,0.7259]
[1646404478096,0.75862313,41329.0,41328.0,0.7259]
[1646404478294,0.75862313,41329.0,41328.0,0.51167156]
[1646404478295,0.86680623,41329.0,41328.0,0.51167156]
[1646404478501,1.07483484,41329.0,41328.0,0.08783527]
[1646404478695,1.42423,41328.0,41306.0,0.060556]
[1646404478900,0.24450942,41315.0,41297.0,0.2357]
[1646404479198,0.24450942,41315.0,41296.0,0.4719]
[1646404479199,0.3907,41314.0,41296.0,0.4719]
[1646404479396,0.16968815,41313.0,41295.0,0.00355527]
[1646404479652,0.161851,41312.0,41295.0,0.00355527]
[1646404479849,0.121152,41308.0,41296.0,0.27785292]
[1646404480048,0.0407,41307.0,41300.0,0.20989656]
[1646404480256,0.0407,41307.0,41297.0,0.1]
[1646404480453,0.0407,41307.0,41296.0,0.27785292]
[1646404480849,0.36773996,41307.0,41296.0,0.27785292]
[1646404481053,0.0407,41307.0,41296.0,0.27785292]
[1646404481250,0.0407,41307.0,41302.0,0.23338796]
[1646404481451,0.0407,41307.0,41296.0,0.27785292]
[1646404481651,0.06057141,41305.0,41296.0,0.27785292]
[1646404482151,0.06057141,41305.0,41295.0,0.00355527]
[1646404482152,0.12114441,41305.0,41295.0,0.00355527]
[1646404482356,0.17114441,41305.0,41295.0,0.00355527]
[1646404482555,0.060584,41302.0,41295.0,0.00355527]
[1646404482758,0.24450942,41298.0,41295.0,0.00355527]
[1646404482951,0.0407,41297.0,41295.0,0.00355527]
[1646404483152,0.121194,41296.0,41295.0,0.00355527]
[1646404483392,0.09012,41296.0,41295.0,0.00355527]
[1646404483592,0.101295,41296.0,41295.0,0.00355527]
[1646404483794,0.0407,41296.0,41295.0,0.00355527]
[1646404485400,0.0907,41296.0,41295.0,0.00355527]
[1646404485598,0.24450942,41292.0,41285.0,0.001]
[1646404485796,0.060607,41293.0,41285.0,0.001]
[1646404485797,0.3407,41291.0,41285.0,0.001]
[1646404485997,0.05352,41289.0,41276.0,0.01336684]
[1646404486195,0.84,41291.0,41276.0,0.01336684]
[1646404486196,0.05,41285.0,41276.0,0.01336684]
[1646404486398,0.05,41285.0,41273.0,0.0021]
[1646404486399,0.24450942,41279.0,41273.0,0.0021]
[1646404486599,0.33520942,41279.0,41273.0,0.0021]
[1646404486801,0.05,41278.0,41273.0,0.0021]
[1646404486997,0.3,41282.0,41273.0,0.0021]
[1646404486998,0.10215342,41289.0,41273.0,0.0021]
[1646404487254,0.10215342,41289.0,41273.0,0.06359989]
[1646404487255,0.06061901,41278.0,41273.0,0.06359989]
[1646404487459,0.06061901,41278.0,41276.0,0.15]
[1646404487656,0.06061901,41278.0,41276.0,0.36964118]
[1646404487852,0.06061901,41278.0,41276.0,0.82646792]
[1646404488057,0.06061901,41278.0,41277.0,0.1]
[1646404488453,0.06061901,41278.0,41274.0,0.31151954]
[1646404488655,0.06061901,41278.0,41274.0,0.01151954]
[1646404488854,0.06061901,41278.0,41273.0,0.0021]
[1646404489053,0.06061901,41278.0,41274.0,0.16583881]
[1646404489454,0.06061901,41278.0,41276.0,0.39868699]
[1646404489672,0.06061901,41278.0,41277.0,0.3]
[1646404489857,0.060592,41284.0,41278.0,1.61162639]
[1646404490056,0.060592,41284.0,41282.0,0.15]
[1646404490256,0.060592,41284.0,41277.0,0.4]
[1646404490257,0.1211908,41281.0,41279.0,0.1]
[1646404490658,0.1211908,41281.0,41275.0,0.151]
[1646404490896,0.2924018,41281.0,41275.0,0.153]
[1646404491094,0.05,41280.0,41275.0,0.153]
[1646404491294,0.18182917,41279.0,41275.0,0.153]
[1646404491797,0.23182917,41279.0,41275.0,0.153]
[1646404492096,0.12120822,41278.0,41275.0,0.453]
[1646404492304,0.05,41291.0,41279.0,0.2868275]
[1646404492497,0.24239681,41293.0,41286.0,0.2250208]
[1646404492798,0.24239681,41293.0,41285.0,0.05332448]
[1646404492799,0.181787,41291.0,41285.0,0.05332448]
[1646404492997,0.181787,41291.0,41286.0,0.15]
[1646404493397,0.06058511,41290.0,41286.0,0.15]
[1646404493998,0.06058511,41290.0,41281.0,0.1]
[1646404494398,0.06058511,41290.0,41283.0,0.30788474]
[1646404494399,0.060596,41289.0,41283.0,0.30788474]
[1646404494643,0.110596,41289.0,41283.0,0.30788474]
[1646404494838,0.060596,41289.0,41286.0,0.15]
[1646404495043,0.060596,41289.0,41287.0,0.58988393]
[1646404495342,0.242354,41303.0,41288.0,0.4]
[1646404495546,0.242316,41307.0,41293.0,0.15]
[1646404495749,0.01348368,41301.0,41288.0,0.4]
[1646404495940,0.06056396,41299.0,41288.0,0.4]
[1646404496742,0.060571,41298.0,41289.0,0.21510713]
[1646404496951,0.060571,41298.0,41288.0,0.4]
[1646404497242,0.12116524,41295.0,41288.0,0.4]
[1646404497442,0.12116524,41295.0,41288.0,0.1]
[1646404497642,0.1,41294.0,41288.0,0.1]
[1646404497842,0.1,41294.0,41287.0,0.36093566]
[1646404498043,0.160583,41294.0,41287.0,0.66093566]
[1646404498694,0.160583,41294.0,41289.0,0.15]
[1646404498891,0.12116901,41293.0,41289.0,0.15]
[1646404499289,0.12116901,41293.0,41288.0,0.1]
[1646404499492,0.31189605,41292.0,41288.0,0.1]
[1646404499691,0.36189605,41292.0,41286.0,0.005]
[1646404499892,0.24238204,41291.0,41286.0,0.005]
[1646404500090,0.12119,41290.0,41286.0,0.005]
[1646404500295,0.17119,41290.0,41286.0,0.00481984]
[1646404500491,0.11059396,41290.0,41286.0,0.00481984]
[1646404500701,0.181784,41296.0,41289.0,0.15]
[1646404500702,0.060592,41296.0,41289.0,0.15]
[1646404500901,0.00079382,41301.0,41295.0,0.15]
[1646404501193,0.00079382,41301.0,41300.0,0.15]
[1646404501391,0.00079382,41301.0,41300.0,0.35233218]
[1646404501692,0.00079382,41301.0,41300.0,0.98049289]
[1646404501894,0.00079382,41301.0,41300.0,0.25]
[1646404502155,0.00079382,41301.0,41295.0,0.1]
[1646404502361,0.12116319,41298.0,41290.0,0.1]
[1646404502555,0.12116319,41298.0,41286.0,0.15]
[1646404502556,0.12116319,41298.0,41291.0,0.7265]
[1646404502755,0.12116319,41298.0,41293.0,0.15]
[1646404502955,0.12116319,41298.0,41296.0,0.21136099]
[1646404503155,0.05,41298.0,41296.0,0.21136099]
[1646404503359,0.05,41298.0,41296.0,0.36136099]
[1646404503665,0.00079382,41301.0,41297.0,0.42423]
[1646404503858,0.00079382,41301.0,41300.0,0.17423]
[1646404504055,0.00079382,41301.0,41300.0,1.27449971]
[1646404504256,0.05,41312.0,41300.0,1.69122513]
[1646404504457,0.05,41314.0,41300.0,1.54122513]
[1646404504656,0.05,41314.0,41306.0,0.15]
[1646404504856,0.06054937,41321.0,41311.0,0.16421903]
[1646404505055,0.06054937,41321.0,41306.0,0.15]
[1646404505056,0.06054937,41321.0,41312.0,0.3]
[1646404505255,0.38139903,41321.0,41309.0,0.27139805]
[1646404505458,2.70507514,41324.0,41310.0,0.3]
[1646404505656,0.060545,41322.0,41315.0,0.15]
[1646404506094,2.65507514,41324.0,41315.0,0.15]
[1646404506295,0.22891744,41322.0,41317.0,0.21206854]
[1646404506592,0.31044018,41328.0,41317.0,0.21206854]
[1646404506794,0.8407,41332.0,41322.0,0.15]
[1646404506795,0.05,41332.0,41322.0,0.15]
[1646404506991,0.05,41332.0,41323.0,0.3]
[1646404507390,0.05,41332.0,41324.0,0.29474182]
[1646404507594,0.0011,41333.0,41324.0,0.22101828]
[1646404507793,0.0011,41333.0,41330.0,0.15]
[1646404508192,0.0011,41333.0,41330.0,0.45]
[1646404508393,0.0011,41333.0,41326.0,0.15]
[1646404508993,0.061629,41333.0,41326.0,0.15]
[1646404509192,0.25664325,41332.0,41326.0,0.15]
[1646404509393,0.0011,41333.0,41326.0,0.15]
[1646404509857,0.06052946,41332.0,41326.0,0.15]
[1646404510255,0.060529,41330.0,41326.0,0.15]
[1646404510657,0.110529,41330.0,41328.0,0.21057683]
[1646404511470,0.110529,41330.0,41327.0,0.1]
[1646404511961,0.110529,41330.0,41326.0,0.15]
[1646404512562,0.110529,41330.0,41321.0,0.11365605]
[1646404512765,0.53162,41330.0,41313.0,0.01500126]
[1646404513496,0.060543,41326.0,41316.0,0.24772917]
[1646404513697,0.160543,41326.0,41319.0,0.15]
[1646404514006,0.05,41326.0,41325.0,0.17423]
[1646404514197,0.00084882,41329.0,41326.0,0.01179126]
[1646404514496,0.00084882,41329.0,41327.0,0.23367221]
[1646404515097,0.00084882,41329.0,41328.0,0.45]
[1646404515304,0.0521,41341.0,41329.0,2.1386]
[1646404515505,0.0521,41341.0,41338.0,0.15]
[1646404515698,0.001,41341.0,41339.0,0.31252323]
[1646404515899,0.0022,41350.0,41340.0,2.58027463]
[1646404516098,0.0022,41350.0,41344.0,0.15]
[1646404516299,0.001,41354.0,41345.0,0.7386]
[1646404516506,0.060491,41355.0,41353.0,0.15]
[1646404516699,0.0022,41356.0,41354.0,0.21793579]
[1646404516901,0.0022,41356.0,41355.0,0.21618959]
[1646404517146,0.0022,41356.0,41354.0,0.51793579]
[1646404517147,0.0022,41356.0,41354.0,0.1]
[1646404517348,0.27466462,41361.0,41354.0,0.1]
[1646404517349,0.0005,41361.0,41354.0,0.1]
[1646404517550,0.060486,41359.0,41354.0,0.1]
[1646404517750,0.060486,41359.0,41354.0,0.11035734]
[1646404517949,0.0005,41361.0,41355.0,0.45]
[1646404518149,0.0005,41361.0,41358.0,0.15]
[1646404518353,0.001,41366.0,41360.0,0.6742509]
[1646404518659,0.0032,41373.0,41366.0,0.07730165]
[1646404518853,0.051,41376.0,41368.0,0.15]
[1646404519057,0.0011,41381.0,41375.0,0.15]
[1646404519249,0.0011,41391.0,41379.0,0.15]
[1646404519454,0.0011,41391.0,41390.0,0.3118]
[1646404519651,0.00201905,41391.0,41390.0,0.45]
[1646404519851,0.0011,41391.0,41390.0,0.6405]
[1646404520251,0.0011,41391.0,41390.0,0.1905]
[1646404520660,0.0011,41391.0,41390.0,0.0905]
[1646404520901,0.0011,41391.0,41388.0,0.0143376]
[1646404521103,0.27211159,41389.0,41387.0,0.003]
[1646404521714,0.27635859,41388.0,41387.0,0.003]
[1646404521904,0.12093054,41384.0,41376.0,0.5]
[1646404522105,0.12093054,41384.0,41370.0,0.3]
[1646404522308,0.12093054,41384.0,41369.0,0.72518]
[1646404522309,0.06046554,41384.0,41369.0,0.72518]
[1646404522505,0.1146494,41384.0,41369.0,0.72518]
[1646404522706,0.060482,41380.0,41369.0,0.72518]
[1646404523004,0.060482,41380.0,41369.0,0.362224]
[1646404523005,0.21183612,41370.0,41369.0,0.362224]
[1646404523210,0.21183612,41370.0,41355.0,0.33968823]
[1646404523211,1.0946,41370.0,41346.0,0.16576274]
[1646404523407,1.0946,41370.0,41335.0,0.16568139]
[1646404523408,0.5499,41369.0,41343.0,0.15]
[1646404523605,1.0446,41368.0,41344.0,0.01374153]
[1646404523804,0.01237747,41363.0,41348.0,0.3726366]
[1646404524003,0.01237747,41363.0,41343.0,0.15]
[1646404524005,0.06050349,41359.0,41347.0,0.001]
[1646404524206,0.060507,41356.0,41347.0,0.15713067]
[1646404524404,0.11050349,41359.0,41347.0,0.15713067]
[1646404524405,0.0446,41355.0,41348.0,0.3]
[1646404524652,0.0446,41355.0,41348.0,0.3011]
[1646404524653,0.05,41354.0,41348.0,0.3011]
[1646404524851,0.110496,41355.0,41349.0,0.05549244]
[1646404525055,0.05,41355.0,41353.0,0.05427344]
[1646404525252,0.002,41359.0,41354.0,0.31464086]
[1646404525455,0.002,41359.0,41358.0,0.05427344]
[1646404525651,0.002,41359.0,41358.0,0.35427344]
[1646404525852,0.002,41359.0,41355.0,0.7254]
[1646404527153,0.062491,41359.0,41355.0,0.7254]
[1646404527354,0.112491,41359.0,41355.0,0.7254]
[1646404529395,0.004,41365.0,41363.0,0.0101136]
[1646404529593,0.004,41365.0,41361.0,0.1]
[1646404529792,0.004,41365.0,41359.0,0.1]
[1646404529994,0.004,41365.0,41357.0,0.002]
[1646404529995,0.28077269,41364.0,41357.0,0.002]
[1646404530192,0.28077269,41364.0,41357.0,0.102]
[1646404530593,0.44126092,41364.0,41357.0,0.002]
[1646404530797,0.44126092,41364.0,41351.0,0.1]
[1646404530798,0.44126092,41364.0,41348.0,0.0011]
[1646404530799,1.4,41357.0,41348.0,0.0011]
[1646404530999,0.24921349,41351.0,41348.0,0.0011]
[1646404531294,0.0446,41350.0,41348.0,0.0011]
[1646404531492,0.1446,41350.0,41348.0,0.0011]
[1646404532164,0.1446,41350.0,41348.0,0.01420765]
[1646404532349,0.0946,41350.0,41348.0,0.19430503]
[1646404532552,0.05,41362.0,41349.0,1.765331]
[1646404532751,0.0446,41361.0,41359.0,0.05978294]
[1646404532954,0.01185624,41372.0,41359.0,0.05978294]
[1646404532955,0.05,41371.0,41359.0,0.01118237]
[1646404533155,0.0134042,41380.0,41362.0,0.05427344]
[1646404533353,0.05,41380.0,41362.0,0.05427344]
[1646404533652,0.43184556,41383.0,41368.0,0.060468]
[1646404533653,0.42094,41383.0,41368.0,0.060468]
[1646404533853,0.27535022,41382.0,41370.0,0.29392471]
[1646404534052,0.23060851,41374.0,41368.0,0.060468]
[1646404534455,0.181412,41379.0,41368.0,0.060468]
[1646404534852,0.181412,41379.0,41368.0,0.23630808]
[1646404535053,0.181412,41379.0,41368.0,0.45121194]
[1646404535354,0.181412,41379.0,41368.0,0.3848972]
[1646404535355,0.060468,41377.0,41368.0,0.3848972]
[1646404535554,0.28837402,41374.0,41368.0,0.060468]
[1646404535753,0.38837402,41374.0,41368.0,0.060468]
[1646404535997,0.38837402,41374.0,41368.0,0.06025657]
[1646404537203,0.38837402,41374.0,41367.0,0.0124392]
[1646404537402,0.80934255,41374.0,41367.0,0.0124392]
[1646404538002,0.52096853,41374.0,41367.0,0.0124392]
[1646404538205,0.1,41374.0,41367.0,0.08691744]
[1646404538404,0.1,41374.0,41368.0,0.17200929]
[1646404538601,0.05,41374.0,41367.0,0.08691744]
[1646404538804,0.05287398,41377.0,41367.0,0.0124392]
[1646404538807,0.05,41376.0,41367.0,0.0124392]
[1646404539008,0.25484979,41373.0,41368.0,0.01008694]
[1646404539204,0.05,41373.0,41368.0,0.01008694]
[1646404539406,0.06048,41372.0,41368.0,0.01008694]
[1646404539849,0.22446898,41371.0,41368.0,0.01008694]
[1646404540046,0.05,41371.0,41368.0,0.01008694]
[1646404541250,0.110482,41371.0,41368.0,0.01008694]
[1646404541451,0.110482,41371.0,41368.0,0.32534423]
[1646404541650,0.160482,41371.0,41368.0,0.32534423]
[1646404542051,0.060482,41371.0,41368.0,0.32534423]
[1646404542257,0.00287398,41377.0,41370.0,1.4]
[1646404542452,0.00287398,41377.0,41375.0,0.05427344]
[1646404542653,0.00287398,41377.0,41376.0,0.3]
[1646404542852,0.060448,41388.0,41382.0,0.3078454]
[1646404543056,0.05,41390.0,41383.0,0.3]
[1646404543254,0.0011,41393.0,41386.0,0.05427344]
[1646404543699,0.0011,41393.0,41387.0,0.07466538]
[1646404543900,0.0011,41393.0,41390.0,0.05427344]
[1646404544103,0.001,41398.0,41390.0,0.35427344]
[1646404544301,0.001,41398.0,41392.0,0.05427344]
[1646404544500,0.001,41398.0,41393.0,0.3]
[1646404544702,0.0022,41404.0,41396.0,1.4]
[1646404544903,0.0022,41404.0,41400.0,0.05427344]
[1646404545100,0.02559688,41406.0,41401.0,1.4]
[1646404545305,0.02559688,41406.0,41405.0,0.05427344]
[1646404545898,0.02559688,41406.0,41405.0,0.28918812]
[1646404546099,0.02559688,41406.0,41404.0,0.060401]
[1646404546303,0.02559688,41406.0,41402.0,0.1877]
[1646404546500,0.02559688,41406.0,41402.0,0.1866]
[1646404547147,0.02559688,41406.0,41402.0,0.26080733]
[1646404547348,0.060422,41405.0,41402.0,0.26080733]
[1646404547948,0.060422,41405.0,41402.0,0.1866]
[1646404548148,0.060422,41405.0,41403.0,0.06042]
[1646404548750,0.060422,41405.0,41402.0,0.1866]
[1646404549151,0.110422,41405.0,41403.0,0.06661693]
[1646404549352,0.110422,41405.0,41403.0,0.058133]
[1646404549956,0.07559688,41406.0,41390.0,0.02423]
[1646404549957,0.13620039,41398.0,41390.0,0.02423]
[1646404550158,0.13620039,41398.0,41395.0,0.1]
[1646404550454,0.13620039,41398.0,41397.0,0.0720092]
[1646404550655,0.13620039,41398.0,41395.0,0.3]
[1646404550902,0.13620039,41398.0,41390.0,0.3]
[1646404550903,0.18620039,41398.0,41390.0,0.3]
[1646404551104,0.27371678,41397.0,41393.0,0.006]
[1646404551307,0.181285,41396.0,41393.0,0.006]
[1646404551512,0.01281793,41395.0,41393.0,0.006]
[1646404551710,0.21281793,41395.0,41376.0,0.68251838]
[1646404551906,0.060445,41388.0,41376.0,0.68251838]
[1646404552106,0.060445,41388.0,41377.0,0.02423]
[1646404552107,0.01240998,41387.0,41377.0,0.02423]
[1646404552303,0.01240998,41387.0,41378.0,0.64795826]
[1646404552510,0.110445,41388.0,41386.0,0.24369869]
[1646404552711,0.01182955,41387.0,41386.0,0.24369869]
[1646404553709,0.181334,41391.0,41386.0,0.24369869]
[1646404553710,0.05,41396.0,41387.0,0.365331]
[1646404553908,0.05,41396.0,41386.0,0.54369869]
[1646404553909,0.01237163,41395.0,41386.0,0.54369869]
[1646404554105,0.01237163,41395.0,41387.0,0.1]
[1646404554306,0.120848,41391.0,41387.0,0.1]
[1646404554947,0.170848,41391.0,41381.0,0.1]
[1646404555148,0.060442,41388.0,41382.0,0.3]
[1646404555350,0.060442,41388.0,41384.0,0.389561]
[1646404555549,0.01496362,41401.0,41388.0,0.02423]
[1646404555747,0.01496362,41401.0,41389.0,0.389561]
[1646404555947,0.060413,41394.0,41389.0,0.389561]